bitfinex/quotes_SOLUSD_20240621
["timestamp","ask_amount","ask_price","bid_price","bid_amount"]
[1718978064556,6.135,130.4,130.35,6.1372]
[1718978064771,6.1356,130.39,130.34,6.3074]
[1718978065079,21.9682,130.43,130.31,45.0]
[1718978065080,20.0,130.38,130.31,6.1389]
[1718978065358,20.0,130.38,130.3,6.1395]
[1718978065567,6.1377,130.34,130.3,6.1395]
[1718978065772,6.5833,130.34,130.28,6.1404]
[1718978066065,6.1384,130.33,130.26,15.3534]
[1718978066366,6.1389,130.32,130.24,15.356]
[1718978066562,6.1385,130.33,130.28,6.1403]
[1718978066773,6.5833,130.34,130.23,138.9959]
[1718978066944,15.9948,130.36,130.31,6.139]
[1718978067145,6.1377,130.35,130.3,6.1395]
[1718978067359,15.9948,130.36,130.29,6.1399]
[1718978067551,6.1385,130.33,130.29,6.1399]
[1718978067861,6.1385,130.33,130.29,6.14]
[1718978068161,6.138,130.34,130.3,6.1396]
[1718978068361,6.1382,130.33,130.26,15.353]
[1718978068671,6.1382,130.33,130.23,115.8959]
[1718978068672,6.1375,130.35,130.3,6.1394]
[1718978068848,20.0,130.34,130.31,6.1391]
[1718978069049,6.1375,130.35,130.3,6.1394]
[1718978069665,6.1375,130.35,130.31,6.139]
[1718978070042,6.1387,130.32,130.25,15.3549]
[1718978070246,6.1393,130.31,130.27,6.1409]
[1718978070548,6.14,130.3,130.26,6.1415]
[1718978070757,15.5135,130.35,130.24,15.3554]
[1718978070944,20.17,130.34,130.23,15.8959]
[1718978071446,15.3478,130.32,130.25,6.1417]
[1718978071646,26.1394,130.31,130.26,6.1414]
[1718978071846,6.1404,130.29,130.25,6.1419]
[1718978072048,6.1404,130.29,130.24,6.1422]
[1718978072367,0.17,130.34,130.23,6.1427]
[1718978072368,20.0,130.28,130.23,6.1427]
[1718978072870,6.1411,130.27,130.22,6.1431]
[1718978073364,6.1411,130.27,130.23,6.1429]
[1718978073548,20.0,130.28,130.25,6.1416]
[1718978073758,6.1406,130.28,130.24,6.1423]
[1718978074353,6.1406,130.28,130.21,15.9948]
[1718978074354,26.1411,130.27,130.21,15.9948]
[1718978074551,6.1416,130.26,130.21,15.9948]
[1718978074791,6.1421,130.25,130.21,22.1385]
[1718978074968,26.1421,130.25,130.21,15.9948]
[1718978075271,31.3092,130.28,130.21,15.9948]
[1718978075272,6.1417,130.26,130.22,6.1431]
[1718978075448,20.0,130.25,130.21,15.9948]
[1718978075650,6.1428,130.24,130.21,15.9948]
[1718978076246,26.1421,130.25,130.21,15.9948]
[1718978076460,6.1425,130.24,130.21,15.9948]
[1718978076771,6.1431,130.23,130.21,15.9948]
[1718978076966,20.0,130.26,130.21,15.9948]
[1718978078054,6.1427,130.24,130.21,15.9948]
[1718978078262,6.1421,130.25,130.21,22.1386]
[1718978078446,6.1421,130.25,130.21,15.9948]
[1718978078447,20.0,130.24,130.21,15.9948]
[1718978078654,26.1426,130.24,130.21,15.9948]
[1718978078854,20.0,130.24,130.21,15.9948]
[1718978079251,15.9569,130.28,130.21,15.9948]
[1718978079574,20.0,130.27,130.21,15.9948]
[1718978079750,6.1404,130.29,130.25,6.1418]
[1718978079949,6.1404,130.29,130.24,6.1421]
[1718978080163,6.1404,130.29,130.25,6.1418]
[1718978080363,6.1404,130.29,130.24,6.1422]
[1718978080684,6.1402,130.29,130.24,6.1422]
[1718978080865,12.5814,130.3,130.22,15.6974]
[1718978081176,12.5814,130.3,130.24,6.1423]
[1718978081177,6.1405,130.29,130.24,6.1423]
[1718978081366,6.1403,130.29,130.24,6.1421]
[1718978081668,6.1406,130.28,130.24,6.1421]
[1718978081973,6.1406,130.28,130.23,6.1427]
[1718978082472,6.4415,130.3,130.26,6.1412]
[1718978082769,12.5814,130.3,130.26,6.1412]
[1718978083162,12.5814,130.3,130.23,15.3565]
[1718978083360,6.4415,130.3,130.26,6.1413]
[1718978083564,6.1394,130.31,130.27,6.1409]
[1718978083758,6.1397,130.3,130.24,0.17]
[1718978083954,6.1397,130.3,130.24,0.34]
[1718978084279,6.1398,130.3,130.23,30.7405]
[1718978084472,6.1409,130.28,130.23,15.384]
[1718978084657,6.1403,130.29,130.23,15.384]
[1718978084855,6.1403,130.29,130.25,6.1417]
[1718978085059,15.3486,130.31,130.23,21.5267]
[1718978085264,6.1411,130.27,130.23,6.1427]
[1718978085572,0.17,130.32,130.2,6.1441]
[1718978085573,16.5943,130.29,130.2,6.1441]
[1718978085770,15.3524,130.28,130.18,15.7014]
[1718978085978,6.1424,130.25,130.21,6.1437]
[1718978086466,6.1424,130.25,130.2,6.1441]
[1718978086650,6.1421,130.25,130.21,6.1439]
[1718978087047,6.1421,130.25,130.2,6.1441]
[1718978087457,6.1426,130.24,130.2,6.1441]
[1718978087659,12.1871,130.25,130.2,6.1441]
[1718978087853,6.1425,130.24,130.2,6.1441]
[1718978088051,6.1425,130.24,130.2,6.1443]
[1718978088274,12.1871,130.25,130.2,6.1443]
[1718978088472,12.1871,130.25,130.21,6.1439]
[1718978088778,6.1426,130.24,130.2,6.1441]
[1718978089576,6.0449,130.25,130.18,15.3624]
[1718978089754,12.1869,130.25,130.21,6.1436]
[1718978089956,6.0449,130.25,130.21,6.1436]
[1718978090158,6.1425,130.24,130.2,6.1441]
[1718978090565,6.143,130.23,130.16,6.5523]
[1718978090960,6.1434,130.22,130.18,6.1451]
[1718978091172,6.1434,130.22,130.15,31.0672]
[1718978091173,6.1446,130.2,130.16,6.1461]
[1718978091383,6.1446,130.2,130.15,6.1465]
[1718978091565,6.1449,130.19,130.15,6.1465]
[1718978091878,6.1451,130.19,130.15,6.1466]
[1718978092066,20.0,130.21,130.12,21.3898]
[1718978092373,20.0,130.21,130.1,35.3727]
[1718978092374,15.361,130.2,130.1,35.3727]
[1718978092575,6.1457,130.18,130.13,6.1475]
[1718978092780,15.361,130.2,130.13,6.1475]
[1718978093085,26.145,130.19,130.14,6.147]
[1718978093459,6.1453,130.18,130.13,6.1474]
[1718978093964,6.5197,130.18,130.09,21.6631]
[1718978094162,6.1463,130.16,130.11,6.1484]
[1718978094979,6.5197,130.18,130.12,6.1479]
[1718978094980,6.146,130.17,130.12,6.1479]
[1718978095181,20.0,130.16,130.12,6.1479]
[1718978095378,26.1463,130.16,130.11,6.1484]
[1718978095681,20.0,130.16,130.12,6.1481]
[1718978096268,26.1459,130.17,130.12,6.1481]
[1718978096464,26.1459,130.17,130.13,6.1476]
[1718978096865,37.6748,130.22,130.07,170.0753]
[1718978097070,22.1454,130.22,130.14,15.3675]
[1718978097306,26.1441,130.21,130.16,6.1462]
[1718978097486,20.0,130.21,130.18,6.1452]
[1718978097660,20.0,130.21,130.15,0.17]
[1718978097661,6.144,130.21,130.16,6.1458]
[1718978097861,6.1446,130.2,130.15,6.1465]
[1718978098071,6.4691,130.22,130.17,6.1453]
[1718978098365,12.6127,130.22,130.17,6.1455]
[1718978098867,20.0,130.21,130.1,30.7449]
[1718978099077,20.0,130.21,130.15,6.1466]
[1718978099265,6.1451,130.19,130.15,6.1466]
[1718978099470,6.1451,130.19,130.12,15.3692]
[1718978099803,6.1451,130.19,130.14,6.1471]
[1718978100156,6.1445,130.2,130.15,6.1466]
[1718978100380,6.1451,130.19,130.14,6.147]
[1718978100587,6.1457,130.18,130.13,6.1475]
[1718978100775,35.3606,130.21,130.1,30.7449]
[1718978100776,20.0,130.21,130.1,30.7449]
[1718978100982,20.0,130.21,130.18,6.145]
[1718978101400,20.0,130.21,130.19,6.1447]
[1718978101601,20.0,130.21,130.18,6.1451]
[1718978101897,20.0,130.22,130.18,6.1451]
[1718978102116,12.6807,130.26,130.19,0.17]
[1718978102283,261.2408,130.28,130.2,15.3609]
[1718978102478,6.1412,130.27,130.22,6.1433]
[1718978102785,6.1406,130.28,130.2,15.3609]
[1718978103095,20.0,130.27,130.22,15.3585]
[1718978103279,6.1399,130.3,130.25,6.1417]
[1718978103478,6.3659,130.32,130.22,15.3585]
[1718978103781,6.1398,130.3,130.25,6.1418]
[1718978103982,6.3659,130.32,130.25,15.3549]
[1718978104195,6.3659,130.32,130.23,0.34]
[1718978104196,6.1392,130.31,130.26,6.1412]
[1718978104386,6.1397,130.3,130.26,6.1412]
[1718978104588,6.1394,130.31,130.26,6.1412]
[1718978104904,6.1397,130.3,130.25,6.1419]
[1718978105585,6.1402,130.29,130.24,6.1422]
[1718978105798,6.1406,130.28,130.24,6.1422]
[1718978105981,21.7128,130.32,130.25,6.1419]
[1718978106170,20.0,130.31,130.23,0.34]
[1718978106375,20.0,130.31,130.26,6.1413]
[1718978106679,20.0,130.31,130.27,6.141]
[1718978106893,12.5047,130.32,130.27,6.1408]
[1718978107398,15.3456,130.33,130.26,0.17]
[1718978107701,20.0,130.32,130.25,6.142]
[1718978107895,26.1389,130.32,130.27,6.141]
[1718978108199,16.4642,130.35,130.26,0.17]
[1718978108380,16.4642,130.35,130.31,6.1389]
[1718978108583,16.4642,130.35,130.32,6.1385]
[1718978108983,6.1368,130.36,130.32,6.1385]
[1718978109181,6.4496,130.39,130.29,15.3493]
[1718978109402,6.1379,130.34,130.28,15.5143]
[1718978109599,6.1379,130.34,130.29,6.3101]
[1718978109808,15.3422,130.36,130.28,15.3443]
[1718978110099,37.1281,130.39,130.21,21.7073]
[1718978110100,6.1402,130.29,130.21,21.7073]
[1718978110295,15.3468,130.32,130.25,6.1417]
[1718978110598,6.1401,130.29,130.24,6.1423]
[1718978110802,6.1401,130.29,130.21,37.066]
[1718978110803,6.1398,130.3,130.25,6.1419]
[1718978111002,20.0,130.29,130.25,6.1419]
[1718978111406,20.0,130.29,130.21,37.066]
[1718978111701,6.1404,130.29,130.24,6.1423]
[1718978111996,20.0,130.31,130.23,15.357]
[1718978112196,20.0,130.31,130.21,21.7073]
[1718978112197,20.0,130.31,130.22,130.7163]
[1718978112406,20.0,130.31,130.29,6.1398]
[1718978112577,6.1379,130.34,130.29,6.1398]
[1718978112784,6.4496,130.36,130.29,6.1399]
[1718978112981,21.7926,130.36,130.28,6.1404]
[1718978113195,6.1391,130.32,130.27,6.1409]
[1718978113399,6.4496,130.36,130.29,6.14]
[1718978113593,6.1381,130.34,130.28,0.17]
[1718978113802,6.1384,130.33,130.26,15.6928]
[1718978113987,6.4496,130.36,130.26,0.34]
[1718978114186,6.1388,130.32,130.26,0.34]
[1718978114602,6.1379,130.34,130.29,6.1398]
[1718978114798,20.0,130.33,130.29,6.1398]
[1718978115699,20.0,130.33,130.26,6.1414]
[1718978115700,6.1394,130.31,130.26,6.1414]
[1718978115903,20.0,130.33,130.24,6.1421]
[1718978116083,15.3477,130.32,130.24,6.1421]
[1718978116283,6.1407,130.28,130.23,6.1427]
[1718978116492,20.0,130.31,130.21,21.7073]
[1718978116689,6.14,130.3,130.25,6.1417]
[1718978116884,6.14,130.3,130.26,6.1414]
[1718978117106,20.0,130.31,130.27,6.141]
[1718978117306,6.139,130.32,130.27,6.141]
[1718978117503,6.1404,130.29,130.24,6.1423]
[1718978117708,26.1392,130.31,130.26,6.1412]
[1718978117896,26.1392,130.31,130.27,6.141]
[1718978118089,20.0,130.31,130.28,6.1406]
[1718978118300,15.3443,130.35,130.28,6.1404]
[1718978118301,6.1384,130.33,130.28,6.1404]
[1718978118500,6.1384,130.33,130.25,0.17]
[1718978118501,20.0,130.32,130.29,6.1401]
[1718978118709,20.0,130.32,130.25,15.5241]
[1718978118892,20.0,130.32,130.29,6.1397]
[1718978119086,6.138,130.34,130.3,6.1396]
[1718978119087,20.0,130.33,130.3,6.1396]
[1718978119393,6.138,130.34,130.29,6.1397]
[1718978120497,15.3434,130.35,130.28,6.3104]
[1718978120703,6.1384,130.33,130.29,6.14]
[1718978120885,6.138,130.34,130.29,6.14]
[1718978121211,20.0,130.33,130.3,6.1396]
[1718978121586,6.138,130.34,130.29,6.1399]
[1718978121903,20.0,130.33,130.29,6.1399]
[1718978122115,20.0,130.33,130.3,6.1394]
[1718978122286,20.0,130.34,130.31,6.139]
[1718978122603,20.0,130.35,130.29,15.3493]
[1718978122807,6.137,130.36,130.31,6.139]
[1718978123107,20.0,130.37,130.3,15.6882]
[1718978123288,20.0,130.38,130.3,15.6882]
[1718978123488,6.1356,130.39,130.34,6.1374]
[1718978123885,267.395,130.42,130.35,0.17]
[1718978124214,261.2341,130.42,130.37,6.1361]
[1718978124424,6.1341,130.42,130.37,6.1361]
[1718978125098,6.1346,130.41,130.37,6.1361]
[1718978125301,6.1346,130.41,130.32,20.0]
[1718978125302,30.6642,130.45,130.32,20.0]
[1718978125609,15.336,130.42,130.35,6.1372]
[1718978125806,6.1356,130.39,130.34,6.1375]
[1718978126006,6.1359,130.38,130.34,6.1375]
[1718978126307,15.3329,130.44,130.33,0.17]
[1718978126511,6.1343,130.42,130.37,6.1359]
[1718978126713,26.1346,130.41,130.36,6.1367]
[1718978126888,26.1346,130.41,130.37,6.1361]
[1718978127341,26.1346,130.41,130.35,0.17]
[1718978127509,15.3329,130.44,130.35,0.17]
[1718978127712,20.0,130.43,130.35,0.17]
[1718978127891,6.1327,130.45,130.37,15.3398]
[1718978128092,20.0,130.44,130.4,6.1347]
[1718978128898,26.1331,130.44,130.4,6.1347]
[1718978129109,26.1331,130.44,130.39,6.1353]
[1718978129322,26.1333,130.44,130.39,6.1353]
[1718978130698,26.1333,130.44,130.38,0.17]
[1718978130699,26.1333,130.44,130.4,6.1348]
[1718978130898,26.1333,130.44,130.34,129.2318]
[1718978130899,6.1336,130.43,130.35,15.343]
[1718978131202,20.0,130.44,130.38,6.1355]
[1718978131203,6.134,130.42,130.38,6.1355]
[1718978131814,35.3334,130.44,130.34,6.1518]
[1718978132027,6.1346,130.41,130.34,6.1518]
[1718978132205,6.1346,130.41,130.36,6.1364]
[1718978132604,15.3352,130.42,130.35,1.53164233]
[1718978132803,6.1355,130.39,130.31,37.8219]
[1718978133004,6.1355,130.39,130.34,6.1375]
[1718978133201,20.0,130.41,130.33,6.1382]
[1718978133202,6.1366,130.37,130.33,6.1382]
[1718978133621,20.0,130.41,130.31,28.613]
[1718978133928,46.3936,130.43,130.28,15.5245]
[1718978133929,6.2005,130.39,130.28,15.5245]
[1718978134094,65.34,130.38,130.27,6.3534]
[1718978134299,6.1384,130.33,130.27,6.3534]
[1718978134494,6.1382,130.33,130.29,6.1398]
[1718978134798,6.1388,130.32,130.25,30.8787]
[1718978135014,6.1388,130.32,130.25,15.5245]
[1718978135015,6.14,130.3,130.25,15.5245]
[1718978135221,20.0,130.29,130.23,6.2799]
[1718978135510,20.0,130.32,130.23,6.2799]
[1718978135511,6.1394,130.31,130.27,6.141]
[1718978135725,20.0,130.3,130.27,6.141]
[1718978136017,6.1393,130.31,130.26,6.1414]
[1718978136216,6.1393,130.31,130.23,21.6372]
[1718978136217,26.1397,130.3,130.23,21.6372]
[1718978136510,6.1395,130.31,130.23,21.6372]
[1718978136715,26.139,130.32,130.27,6.1407]
[1718978136914,20.0,130.32,130.23,6.2799]
[1718978137099,20.0,130.35,130.32,6.1387]
[1718978137300,20.0,130.35,130.28,15.3513]
[1718978137505,20.0,130.35,130.29,0.17]
[1718978137705,15.34,130.38,130.29,0.17]
[1718978137706,26.1365,130.37,130.3,15.349]
[1718978137904,6.2005,130.39,130.33,6.1381]
[1718978137905,26.1361,130.38,130.33,6.1381]
[1718978138827,35.3402,130.38,130.3,6.1395]
[1718978139211,35.3402,130.38,130.31,6.1391]
[1718978139713,15.3422,130.36,130.29,15.9398]
[1718978139926,20.0,130.35,130.31,6.1392]
[1718978140125,20.0,130.35,130.29,15.9398]
[1718978140427,6.1382,130.34,130.29,6.14]
[1718978140924,6.1382,130.34,130.25,15.9198]
[1718978140925,6.1389,130.32,130.25,31.2748]
[1718978141101,6.1395,130.31,130.26,6.3114]
[1718978141302,20.0,130.36,130.27,0.17]
[1718978141508,15.3434,130.35,130.29,6.1401]
[1718978141718,20.0,130.36,130.26,0.34]
[1718978141719,26.1382,130.34,130.26,0.17]
[1718978141925,20.0,130.33,130.3,6.1395]
[1718978142224,20.0,130.33,130.3,6.1396]
[1718978142420,20.0,130.33,130.29,6.1399]
[1718978142625,26.1383,130.33,130.29,6.1399]
[1718978143324,20.0,130.33,130.3,6.1393]
[1718978143527,20.0,130.34,130.28,0.17]
[1718978143739,20.0,130.34,130.29,15.3501]
[1718978143909,6.1371,130.36,130.31,6.1389]
[1718978144104,26.1373,130.35,130.31,6.1389]
[1718978144309,26.1373,130.35,130.3,6.1394]
[1718978144523,6.1378,130.34,130.29,6.14]
[1718978144725,26.1375,130.35,130.3,6.1396]
[1718978145426,6.2005,130.39,130.34,6.1377]
[1718978145633,26.1361,130.38,130.33,6.138]
[1718978146108,6.1364,130.37,130.33,6.138]
[1718978146425,6.137,130.36,130.32,6.1386]
[1718978146730,6.1367,130.37,130.32,6.1386]
[1718978147612,6.137,130.36,130.31,0.17]
[1718978147929,20.0,130.38,130.31,0.17]
[1718978147930,20.0,130.38,130.31,0.34]
[1718978148131,26.1363,130.38,130.33,6.1379]
[1718978148311,6.1363,130.37,130.33,6.1379]
[1718978148512,6.1363,130.37,130.32,6.1385]
[1718978150213,35.3398,130.38,130.31,0.17]
[1718978150410,35.3398,130.38,130.27,67.9889]
[1718978150713,6.1394,130.31,130.27,15.3528]
[1718978150927,6.1394,130.31,130.27,21.4938]
[1718978151124,6.1386,130.33,130.27,15.3528]
[1718978151318,45.17,130.37,130.27,15.3528]
[1718978151319,20.0,130.32,130.29,6.1399]
[1718978151519,6.1379,130.34,130.26,15.3529]
[1718978151747,45.17,130.37,130.28,6.1403]
[1718978152041,20.0,130.36,130.29,6.1401]
[1718978152251,20.0,130.36,130.25,15.9198]
[1718978152415,6.2005,130.39,130.29,15.3502]
[1718978152614,6.1366,130.37,130.32,6.1383]
[1718978152913,26.136,130.38,130.34,6.1375]
[1718978153125,26.136,130.38,130.33,6.138]
[1718978153325,6.1369,130.36,130.32,6.1385]
[1718978153632,20.0,130.38,130.3,6.3947]
[1718978153633,6.1379,130.34,130.3,6.3947]
[1718978153838,6.1371,130.36,130.3,6.3947]
[1718978154032,6.1366,130.37,130.3,6.3947]
[1718978154209,6.1369,130.36,130.32,6.1385]
[1718978154412,6.1365,130.37,130.32,6.1385]
[1718978154826,26.1361,130.38,130.33,6.1381]
[1718978155344,6.1365,130.37,130.32,6.1385]
[1718978155513,6.1368,130.36,130.32,6.1385]
[1718978155715,6.1366,130.37,130.32,6.1385]
[1718978155911,26.1362,130.38,130.34,6.1376]
[1718978156229,26.1362,130.38,130.33,6.138]
[1718978156428,20.0,130.38,130.32,6.1385]
[1718978156738,6.1365,130.37,130.33,6.1381]
[1718978156915,255.1,130.41,130.34,6.1376]
[1718978157119,6.1354,130.39,130.34,6.1376]
[1718978157635,6.1359,130.38,130.33,6.138]
[1718978157935,6.1359,130.38,130.32,15.3782]
[1718978157936,6.1359,130.38,130.34,6.1377]
[1718978158134,6.1365,130.37,130.33,6.1382]
[1718978158337,15.3399,130.38,130.32,15.3782]
[1718978158525,6.137,130.36,130.32,21.5168]
[1718978158836,6.1373,130.35,130.3,6.3092]
[1718978159048,50.6753,130.4,130.28,16.3692]
[1718978159335,50.6753,130.4,130.3,6.1393]
[1718978159336,6.418,130.36,130.3,6.1393]
[1718978159517,6.418,130.36,130.28,16.3692]
[1718978159518,26.1375,130.35,130.28,16.3692]
[1718978159718,20.0,130.35,130.32,6.1385]
[1718978159914,20.0,130.35,130.28,16.3692]
[1718978160125,20.0,130.35,130.31,6.1388]
[1718978160336,26.1374,130.35,130.31,6.1391]
[1718978160528,20.0,130.35,130.28,16.3692]
[1718978160731,20.0,130.35,130.28,22.5097]
[1718978161035,20.0,130.35,130.26,6.1412]
[1718978161036,6.1395,130.31,130.26,6.1412]
[1718978161240,6.1394,130.31,130.26,6.1413]
[1718978161415,6.1384,130.33,130.29,6.1401]
[1718978161621,26.1374,130.35,130.26,0.76761044]
[1718978161813,6.1374,130.35,130.3,6.1394]
[1718978162018,6.418,130.36,130.31,0.76937237]
[1718978162331,6.418,130.36,130.31,6.139]
[1718978162332,6.1371,130.36,130.31,6.139]
[1718978162636,6.1376,130.35,130.3,6.1394]
[1718978162853,6.1379,130.34,130.29,6.14]
[1718978163145,6.1379,130.34,130.29,6.1399]
[1718978163316,255.27,130.39,130.28,6.1404]
[1718978163317,6.1383,130.33,130.28,6.1404]
[1718978163523,6.1383,130.33,130.25,35.3547]
[1718978163731,6.1383,130.33,130.26,0.34]
[1718978163935,6.138,130.34,130.29,6.1398]
[1718978164131,15.3441,130.35,130.26,0.17]
[1718978164340,21.5616,130.33,130.24,21.1362]
[1718978164638,6.1403,130.29,130.24,6.1424]
[1718978164822,0.17,130.32,130.21,6.1359]
[1718978165145,6.1418,130.26,130.21,6.1439]
[1718978165327,6.1421,130.25,130.2,22.0459]
[1718978165645,6.1421,130.25,130.21,6.1437]
[1718978165946,6.1417,130.26,130.21,6.1437]
[1718978166243,6.1421,130.25,130.21,6.1437]
[1718978166535,6.1404,130.29,130.25,6.1418]
[1718978166742,6.1404,130.29,130.24,6.1422]
[1718978167319,6.1394,130.31,130.26,6.1413]
[1718978167520,20.0,130.3,130.26,6.1414]
[1718978167722,26.1397,130.3,130.25,6.3118]
[1718978167928,20.0,130.3,130.25,6.3118]
[1718978168131,26.1389,130.32,130.28,6.1404]
[1718978168329,6.2156,130.33,130.29,6.14]
[1718978168330,12.354,130.33,130.29,6.14]
[1718978168626,6.231,130.36,130.27,16.2499]
[1718978168824,20.0,130.35,130.28,0.34]
[1718978169038,26.1376,130.35,130.3,6.1394]
[1718978169453,15.8567,130.38,130.31,6.1391]
[1718978169749,20.0,130.37,130.31,6.1391]
[1718978170050,6.1375,130.35,130.31,6.1389]
[1718978171543,6.137,130.36,130.31,6.1389]
[1718978171731,20.0,130.37,130.32,6.1384]
[1718978171732,26.1364,130.37,130.32,6.1384]
[1718978171929,20.0,130.37,130.31,0.17]
[1718978172242,6.14,130.43,130.32,6.5388]
[1718978172427,6.1351,130.4,130.35,6.137]
[1718978172618,20.0,130.42,130.35,6.137]
[1718978172619,26.1355,130.39,130.35,6.1371]
[1718978172820,6.5918,130.44,130.38,6.1356]
[1718978173027,6.1338,130.43,130.38,6.1356]
[1718978173646,6.134,130.42,130.38,6.1356]
[1718978173827,6.1345,130.41,130.37,6.1362]
[1718978174031,15.337,130.41,130.3,16.2764]
[1718978174238,6.1371,130.36,130.31,6.1391]
[1718978174538,15.3375,130.4,130.3,16.2764]
[1718978174746,6.1351,130.4,130.31,20.0]
[1718978174944,6.1346,130.41,130.36,6.1367]
[1718978175139,6.5918,130.44,130.31,20.0]
[1718978175140,6.5918,130.44,130.37,6.136]
[1718978175337,20.0,130.43,130.37,15.3398]
[1718978175542,20.0,130.43,130.31,143.08]
[1718978175543,20.0,130.43,130.36,0.17]
[1718978175724,20.0,130.43,130.36,0.34]
[1718978175927,6.5918,130.44,130.36,0.34]
[1718978176245,6.1332,130.44,130.39,6.135]
[1718978176441,15.3325,130.45,130.36,0.17]
[1718978176648,6.1341,130.42,130.37,6.136]
[1718978176824,6.1344,130.41,130.37,6.136]
[1718978177025,6.1341,130.42,130.37,6.136]
[1718978177432,6.1333,130.44,130.39,6.1351]
[1718978177634,20.0,130.43,130.39,6.1351]
[1718978178150,21.5716,130.47,130.4,6.1349]
[1718978178329,6.1329,130.45,130.39,15.1729]
[1718978178653,20.0,130.44,130.4,6.1347]
[1718978178941,6.1335,130.43,130.39,15.1729]
[1718978179148,6.1341,130.42,130.37,6.1361]
[1718978179452,6.1337,130.43,130.39,6.1353]
[1718978179635,6.1337,130.43,130.38,6.1357]
[1718978181035,26.1321,130.46,130.36,0.17]
[1718978181232,6.1332,130.44,130.4,6.1347]
[1718978181435,6.1336,130.43,130.39,6.1353]
[1718978181827,6.1332,130.44,130.39,6.1353]
[1718978182026,20.0,130.46,130.4,6.1349]
[1718978182027,6.1328,130.45,130.4,6.1349]
[1718978182222,20.0,130.46,130.42,6.1338]
[1718978182839,6.1315,130.48,130.41,0.17]
[1718978183044,20.0,130.47,130.44,6.1327]
[1718978183235,20.0,130.47,130.45,6.1325]
[1718978183431,6.0865,130.5,130.46,6.1321]
[1718978183432,6.1304,130.5,130.46,6.1321]
[1718978183644,6.9775856,130.51,130.42,21.7812]
[1718978183835,20.0,130.5,130.46,6.132]
[1718978184146,6.1307,130.49,130.45,6.1325]
[1718978184868,0.8475856,130.51,130.38,22.4482]
[1718978185145,0.8475856,130.51,130.4,15.3362]
[1718978185352,6.1309,130.49,130.44,6.133]
[1718978185653,6.1312,130.48,130.44,6.133]
[1718978185846,16.1728856,130.51,130.44,6.1329]
[1718978186035,16.1728856,130.51,130.38,122.4482]
[1718978186036,0.8475856,130.51,130.38,122.4482]
[1718978186234,0.8475856,130.51,130.47,6.1312]
[1718978186434,0.8475856,130.51,130.46,15.3302]
[1718978186645,0.8475856,130.51,130.47,0.17]
[1718978186843,0.8475856,130.51,130.49,6.1304]
[1718978187235,0.8475856,130.51,130.49,6.1305]
[1718978187942,0.8475856,130.51,130.47,0.34]
[1718978187943,0.8475856,130.51,130.48,6.131]
[1718978188155,0.8475856,130.51,130.49,0.17]
[1718978188333,0.8475856,130.51,130.47,0.17]
[1718978188534,0.8475856,130.51,130.47,0.34]
[1718978188734,0.8475856,130.51,130.47,6.3014]
[1718978188951,6.9774856,130.51,130.46,6.1319]
[1718978189234,0.8475856,130.51,130.47,6.1315]